fUSD/lending_fUSD_20260115
["ID","MTS","AMOUNT","RATE_DAILY","PERIOD"]
[402075673,1768509652139,-44.25967337,0.00016656,2]
[402075674,1768509652249,-2997.34511647,0.00016561,2]
[402075675,1768509652267,-424.10315084,0.00016561,2]
[402075676,1768509652289,-227.3835719,0.00016561,2]
[402075677,1768509652311,-165.09,0.00016561,2]
[402075678,1768509652355,1598.0,0.0003013,120]
[402075679,1768509652374,-606.23385599,0.00016561,2]
[402075680,1768509652928,1064.0,0.0003013,120]
[402075681,1768509654272,-10000.01,0.00016561,2]
[402075682,1768509657385,-10000.01,0.00016561,2]
[402075683,1768509657507,-4329.21217257,0.00016561,2]
[402075684,1768509657535,-561.97418262,0.00016656,2]
[402075685,1768509657607,-217.63728962,0.00016657,2]
[402075686,1768509658085,906.73440252,0.00027397,120]
[402075687,1768509660713,2439.28,0.00016329,2]
[402075688,1768509694554,1218.902,0.00016324,2]
[402075689,1768509695304,1728.960018,0.00016474,2]
[402075690,1768509697139,4612.867982,0.00016173,2]
[402075691,1768509697161,10000.01,0.00016173,2]
[402075692,1768509697184,10000.01,0.00016173,2]
[402075693,1768509697207,10000.01,0.00016173,2]
[402075694,1768509697229,10000.01,0.00016173,2]
[402075695,1768509697251,10000.01,0.00016173,2]
[402075696,1768509697277,10000.01,0.00016173,2]
[402075697,1768509697300,10000.01,0.00016173,2]
[402075698,1768509697323,10000.01,0.00016173,2]
[402075699,1768509697345,10000.01,0.00016173,2]
[402075700,1768509706867,-10000.01,0.00016173,2]
[402075701,1768509707015,-4534.032018,0.00016173,2]
[402075702,1768509710145,968.0,0.0003013,120]
[402075703,1768509770238,406.54430369,0.0003013,120]
[402075704,1768509808443,1852.42,0.00015988,2]
[402075705,1768509841131,239.7768126,0.00030136,120]
[402075706,1768509846294,-354.74875942,0.00016557,2]
[402075707,1768509847687,-300.0,0.00016557,2]
[402075708,1768509849655,-188.45032922,0.00016557,2]
[402075709,1768509854326,-280.02587259,0.00016557,2]
[402075710,1768509857193,-304.05069773,0.00016557,2]
[402075711,1768509858344,-178.18123788,0.00016557,2]
[402075712,1768509860055,-206.46217732,0.00016557,2]
[402075713,1768509863931,-203.39282246,0.00016557,2]
[402075714,1768509866282,-484.68810338,0.00016557,2]
[402075715,1768509866303,-300.0,0.00016557,2]
[402075716,1768509866323,-179.67770663,0.00016558,2]
[402075717,1768509868296,-20.84462511,0.00016558,2]
[402075718,1768509868320,-195.0,0.00016559,2]
[402075719,1768509868343,-202.88798265,0.00016559,2]
[402075720,1768509870130,-255.04792585,0.00016559,2]
[402075721,1768509871522,-142.0640915,0.00016559,2]
[402075722,1768509871544,-241.80557847,0.00016561,2]
[402075723,1768509876683,-258.19442153,0.00016561,2]
[402075724,1768509876707,-214.5578685,0.00016561,2]
[402075725,1768509876728,-105.58681217,0.00016561,2]
[402075726,1768509878433,-264.77940075,0.00016561,2]
[402075727,1768509880987,-129.63378708,0.00016561,2]
[402075728,1768509881010,-52.72599615,0.00016563,2]
[402075729,1768509882733,-156.09199774,0.00016563,2]
[402075730,1768509886421,-91.18200611,0.00016563,2]
[402075731,1768509886444,-93.28311141,0.00016563,2]
[402075732,1768509887097,200.0,0.0001607,2]
[402075733,1768509889043,-105.36072611,0.00016563,2]
[402075734,1768509889064,-250.0,0.00016582,2]
[402075735,1768509889086,-166.48759201,0.00016592,2]
[402075736,1768509890154,-346.79869449,0.00016592,2]
[402075737,1768509892467,-86.7137135,0.00016592,2]
[402075738,1768509892489,-163.2862865,0.00016606,2]
[402075739,1768509897377,-31.7137135,0.00016606,2]
[402075740,1768509897400,-145.30632382,0.00016656,2]
[402075741,1768509899737,-404.69367618,0.00016656,2]
[402075742,1768509899758,-162.03551096,0.00016656,2]
[402075743,1768509900830,-137.96448904,0.00016656,2]
[402075744,1768509900858,-169.62944504,0.00016657,2]
[402075745,1768509903104,157.7620404,0.00030137,120]
[402075746,1768509903700,-300.0,0.00016656,2]
[402075747,1768509903725,-49.03312016,0.00016656,2]
[402075748,1768509907257,-186.83759342,0.00016656,2]
[402075749,1768509907885,158.32,0.00029615,120]
[402075750,1768509910949,-364.91422489,0.00016656,2]
[402075751,1768509913294,-235.66563197,0.00016656,2]
[402075752,1768509914751,191.22,0.00012947,2]
[402075753,1768509914867,-253.39799004,0.00016656,2]
[402075754,1768509916424,-110.15143952,0.00016656,2]
[402075755,1768509916446,-151.21241997,0.00016656,2]
[402075756,1768509918024,-398.78758003,0.00016656,2]
[402075757,1768509918048,-1.14085575,0.00016656,2]
[402075758,1768509918886,342.66,0.00016164,2]
[402075759,1768509921926,-193.85914425,0.00016656,2]
[402075760,1768509921956,-45.0880033,0.00016657,2]
[402075761,1768509924796,-300.98183784,0.00016561,2]
[402075762,1768509928816,-70.10841918,0.00016561,2]
[402075763,1768509928846,-270.15501241,0.00016657,2]
[402075764,1768509932864,-214.55786848,0.00016561,2]
[402075765,1768509932892,-110.32360406,0.00016657,2]
[402075766,1768509933954,-179.3342065,0.00016657,2]
[402075767,1768509936657,-818.24543962,0.00016657,2]
[402075768,1768509940563,-408.65401964,0.00016656,2]
[402075769,1768509941931,1500.0,0.00016154,2]
[402075770,1768509946608,-311.5501207,0.00016656,2]
[402075771,1768509950271,-155.85892198,0.00016656,2]
[402075772,1768509952579,-241.02894289,0.00016656,2]
[402075773,1768509955248,-48.46212343,0.00016656,2]
[402075774,1768509955272,-416.82192583,0.00016656,2]
[402075775,1768509957317,-231.82683937,0.00016656,2]
[402075776,1768509959444,-220.50650631,0.00016656,2]
[402075777,1768509961674,-250.0,0.00016656,2]
[402075778,1768509966454,-220.24431258,0.00016656,2]
[402075779,1768509968069,-29.75568742,0.00016656,2]
[402075780,1768509968094,-223.70784819,0.00016656,2]
[402075781,1768509970339,-72.69100894,0.00016656,2]
[402075782,1768509970363,-408.69122734,0.00016656,2]
[402075783,1768509972290,-294.27108077,0.00016656,2]
[402075784,1768509974024,-186.26906812,0.00016656,2]
[402075785,1768509976915,-225.71947906,0.00016656,2]
[402075786,1768509981637,-50.60327335,0.00016656,2]
[402075787,1768509981679,-169.87450027,0.00016656,2]
[402075788,1768509983748,-176.3260472,0.00016656,2]
[402075789,1768509986730,-374.67708398,0.00016656,2]
[402075790,1768509986780,170.76,0.00016144,2]
[402075791,1768509993059,-343.46428555,0.00016656,2]
[402075792,1768509995163,-101.21221164,0.00016656,2]
[402075793,1768509995198,-50.18458904,0.00016656,2]
[402075794,1768509997330,-190.79785253,0.00016656,2]
[402075795,1768509998961,-210.71644318,0.00016656,2]
[402075796,1768510001783,-192.71582831,0.00016656,2]
[402075797,1768510004711,-307.28417169,0.00016656,2]
[402075798,1768510004737,-87.87363618,0.00016656,2]
[402075799,1768510008015,-193.82804188,0.00016656,2]
[402075800,1768510010430,-207.1827983,0.00016656,2]
[402075801,1768510012077,-224.97076753,0.00016656,2]
[402075802,1768510012105,-266.37568563,0.00016656,2]
[402075803,1768510013723,-212.64289387,0.00016656,2]
[402075804,1768510015469,-374.66500799,0.00016656,2]
[402075805,1768510018616,-182.25904905,0.00016656,2]
[402075806,1768510020414,-129.6114921,0.00016656,2]
[402075807,1768510020442,-320.69241555,0.00016656,2]
[402075808,1768510022699,-200.10748678,0.00016656,2]
[402075809,1768510024849,-349.41863399,0.00016656,2]
[402075810,1768510029789,-200.0,0.00016647,2]
[402075811,1768510029812,-151.54260527,0.00016656,2]
[402075812,1768510040317,-207.4,0.00016647,2]
[402075813,1768510040346,-200.0,0.00016647,2]
[402075814,1768510040376,-577.21725198,0.00016647,2]
[402075815,1768510040405,-500.0,0.00016656,2]
[402075816,1768510040436,-143.79298705,0.00016656,2]
[402075817,1768510040467,-1165.55412864,0.00016656,2]
[402075818,1768510040496,-1165.55412864,0.00016656,2]
[402075819,1768510040527,-915.41887874,0.00016656,2]
[402075820,1768510042162,-170.20645557,0.00016656,2]
[402075821,1768510045571,-225.65242709,0.0001656,2]
[402075822,1768510048255,-294.1945897,0.0001656,2]
[402075823,1768510048579,-5993.0852499,0.0001656,2]
[402075824,1768510050175,354.0,0.00029987,120]
[402075825,1768510051119,-302.01870332,0.0001656,2]
[402075826,1768510051580,-10000.01,0.0001656,2]
[402075827,1768510053096,-277.104718,0.0001656,2]
[402075828,1768510055847,-596.10329838,0.0001656,2]
[402075829,1768510057360,-616.5331254,0.0001656,2]
[402075830,1768510060827,-187.85577662,0.0001656,2]
[402075831,1768510062995,-184.55796464,0.0001656,2]
[402075832,1768510065877,-231.48647863,0.0001656,2]
[402075833,1768510068437,-174.6720109,0.0001656,2]
[402075834,1768510072358,-234.69378492,0.0001656,2]
[402075835,1768510075009,-168.00441332,0.0001656,2]
[402075836,1768510078251,-220.7081094,0.0001656,2]
[402075837,1768510080906,-601.58032445,0.0001656,2]
[402075838,1768510083290,-281.60740407,0.00016559,2]
[402075839,1768510084967,-18.39259593,0.00016559,2]
[402075840,1768510084992,-246.95970869,0.0001656,2]
[402075841,1768510087027,-296.10975086,0.0001656,2]
[402075842,1768510090393,-204.7351323,0.0001656,2]
[402075843,1768510093913,-173.09021075,0.0001656,2]
[402075844,1768510096652,-217.9782436,0.0001656,2]
[402075845,1768510098495,-300.0,0.0001656,2]
[402075846,1768510100258,-155.559821,0.0001656,2]
[402075847,1768510102253,-213.77511729,0.0001656,2]
[402075848,1768510107231,-300.0,0.0001656,2]
[402075849,1768510111289,-350.4536441,0.0001656,2]
[402075850,1768510117088,-197.03,0.00016557,2]
[402075851,1768510119268,-258.52612354,0.00016557,2]
[402075852,1768510121066,-2044.44387646,0.00016557,2]
[402075853,1768510121102,-2803.59576932,0.0001656,2]
[402075854,1768510121160,-303.93070844,0.0001656,2]
[402075855,1768510122203,-208.17091215,0.0001656,2]
[402075856,1768510122231,-75.75611365,0.0001656,2]
[402075857,1768510126009,-150.82937364,0.0001656,2]
[402075858,1768510126035,-74.12062636,0.0001656,2]
[402075859,1768510126946,-10000.01,0.0001656,2]
[402075860,1768510128051,-500.0,0.0001656,2]
[402075861,1768510130072,-258.83768649,0.0001656,2]
[402075862,1768510132813,-215.14510851,0.0001656,2]
[402075863,1768510134531,-232.09640326,0.0001656,2]
[402075864,1768510136031,-41.29834137,0.0001656,2]
[402075865,1768510136054,-120.32840494,0.00016561,2]
[402075866,1768510136307,151.884478,0.0003013,120]
[402075867,1768510138217,-168.00441332,0.00016561,2]
[402075868,1768510138955,3775.686856,0.00016477,2]
[402075869,1768510141343,-155.04733483,0.00016561,2]
[402075870,1768510145219,-56.61984691,0.00016561,2]
[402075871,1768510145242,-244.40126019,0.00016561,2]
[402075872,1768510146667,-255.59873981,0.00016561,2]
[402075873,1768510146689,-314.66486057,0.00016561,2]
[402075874,1768510146716,-105.49613858,0.00016647,2]
[402075875,1768510148518,-304.46185172,0.00016647,2]
[402075876,1768510149850,-90.0420097,0.00016647,2]
[402075877,1768510149873,-165.56161068,0.00016655,2]
[402075878,1768510152981,-257.17570933,0.00016655,2]
[402075879,1768510154466,-127.26267999,0.00016655,2]
[402075880,1768510154489,-108.60966157,0.00016656,2]
[402075881,1768510156717,-298.54134994,0.00016656,2]
[402075882,1768510158988,-319.52610379,0.00016557,2]
[402075883,1768510160761,-41.55879621,0.00016557,2]
[402075884,1768510160784,-92.84898849,0.00016656,2]
[402075885,1768510160810,-79.92879433,0.00016656,2]
[402075886,1768510160834,-85.66342097,0.00016656,2]
[402075887,1768510163039,-495.81137759,0.00016656,2]
[402075888,1768510165542,-378.62450157,0.00016656,2]
[402075889,1768510168460,-381.44436797,0.00016561,2]
[402075890,1768510170213,-118.55563203,0.00016561,2]
[402075891,1768510170234,-324.8794782,0.00016561,2]
[402075892,1768510174006,-175.1205218,0.00016561,2]
[402075893,1768510174028,-24.8794782,0.00016561,2]
[402075894,1768510175804,-191.43443687,0.00016561,2]
[402075895,1768510178779,-164.94464984,0.00016561,2]
[402075896,1768510181729,-118.74143509,0.00016561,2]
[402075897,1768510181753,-205.45482851,0.00016656,2]
[402075898,1768510181775,-207.223284,0.00016656,2]
[402075899,1768510183336,-201.24937539,0.00016656,2]
[402075900,1768510184816,-292.88949726,0.00016656,2]
[402075901,1768510186403,-197.99917281,0.00016656,2]
[402075902,1768510188638,-266.19279918,0.00016656,2]
[402075903,1768510188662,-128.50382841,0.00016656,2]
[402075904,1768510188885,500.0,0.00016461,2]
[402075905,1768510191215,950.29,0.00015947,2]
[402075906,1768510192428,-208.17091215,0.0001656,2]
[402075907,1768510192451,-177.82724566,0.00016656,2]
[402075908,1768510194601,-308.61255311,0.00016656,2]
[402075909,1768510196732,-13.56020123,0.00016656,2]
[402075910,1768510196758,-256.10749526,0.00016656,2]
[402075911,1768510199706,-180.60937,0.00016656,2]
[402075912,1768510202427,-233.31822963,0.00016655,2]
[402075913,1768510203227,157.7620404,0.00030137,120]
[402075914,1768510204114,-265.59194196,0.0001656,2]
[402075915,1768510205591,-59.11203295,0.0001656,2]
[402075916,1768510205616,-66.68177037,0.00016655,2]
[402075917,1768510205639,-85.71023189,0.00016655,2]
[402075918,1768510207177,-214.28976811,0.00016655,2]
[402075919,1768510207200,-41.67142938,0.00016655,2]
[402075920,1768510208683,-250.0,0.00016655,2]
[402075921,1768510213532,-211.45476909,0.00016561,2]
[402075922,1768510215063,-242.61970597,0.00016561,2]
[402075923,1768510216774,-45.92552494,0.00016561,2]
[402075924,1768510216797,-282.87891931,0.00016561,2]
[402075925,1768510218769,-151.80254426,0.00016561,2]
[402075926,1768510221108,569.1038724,0.0003013,120]
[402075927,1768510222383,-91.41638955,0.00016561,2]
[402075928,1768510222404,-164.58361045,0.00016647,2]
[402075929,1768510223991,-31.37638955,0.00016647,2]
[402075930,1768510224012,-141.90287598,0.00016647,2]
[402075931,1768510225660,-54.05712402,0.00016647,2]
[402075932,1768510225683,-132.49996737,0.00016647,2]
[402075933,1768510228587,-63.46003263,0.00016647,2]
[402075934,1768510228612,-250.23991406,0.00016655,2]
[402075935,1768510230288,-236.00883745,0.00016655,2]
[402075939,1768510231806,-422.07981911,0.00016655,2]
[402075942,1768510231815,-600.33343497,0.00016656,2]
[402075943,1768510231824,-1165.55412864,0.00016656,2]
[402075944,1768510231834,-587.93526405,0.00016656,2]
[402075945,1768510231846,-577.61886459,0.00016656,2]
[402075946,1768510231855,-1165.55412864,0.00016656,2]
[402075947,1768510231864,-1165.55412864,0.00016656,2]
[402075948,1768510231873,-1165.55412864,0.00016656,2]
[402075949,1768510231882,-1165.55412864,0.00016656,2]
[402075962,1768510232142,-1165.55412864,0.00016656,2]
[402075964,1768510232157,-1165.55412864,0.00016656,2]
[402075966,1768510232167,-1165.55412864,0.00016656,2]
[402075968,1768510232176,-1165.55412864,0.00016656,2]
[402075970,1768510232185,-1165.55412864,0.00016656,2]
[402075972,1768510232194,-1165.55412864,0.00016656,2]
[402075974,1768510232203,-1165.55412864,0.00016656,2]
[402075976,1768510232214,-1165.55412864,0.00016656,2]
[402075978,1768510232223,-1165.55412864,0.00016656,2]
[402075980,1768510232233,-547.0537367,0.00016656,2]
[402075982,1768510232245,-420.26169723,0.00016656,2]
[402075985,1768510232259,-198.23869471,0.00016656,2]
[402075987,1768510232268,-162.80395335,0.00016656,2]
[402075989,1768510232279,-708.27235126,0.00016656,2]
[402075991,1768510232289,-294.47782403,0.00016656,2]
[402075993,1768510232299,-594.77522763,0.00016656,2]
[402075995,1768510232310,-570.77890101,0.00016656,2]
[402075996,1768510232319,-1165.55412864,0.00016656,2]
[402075997,1768510232329,-13.87589618,0.00016656,2]
[402075998,1768510232355,-325.00010413,0.00016656,2]
[402075999,1768510232388,-826.67812833,0.00016656,2]
[402076000,1768510232398,-1165.55412864,0.00016656,2]
[402076001,1768510232407,-1165.55412864,0.00016656,2]
[402076002,1768510232416,-1165.55412864,0.00016656,2]
[402076003,1768510232426,-1165.55412864,0.00016656,2]
[402076004,1768510232436,-1165.55412864,0.00016656,2]
[402076005,1768510232445,-1165.55412864,0.00016656,2]
[402076006,1768510232455,-1165.55412864,0.00016656,2]
[402076007,1768510232465,-1165.55412864,0.00016656,2]
[402076008,1768510232474,-1165.55412864,0.00016656,2]
[402076009,1768510232484,-1165.55412864,0.00016656,2]
[402076010,1768510232494,-1165.55412864,0.00016656,2]
[402076011,1768510232504,-1165.55412864,0.00016656,2]
[402076012,1768510232513,-1165.55412864,0.00016656,2]
[402076013,1768510232523,-1165.55412864,0.00016656,2]
[402076014,1768510232533,-1165.55412864,0.00016656,2]
[402076015,1768510232542,-1165.55412864,0.00016656,2]
[402076016,1768510232552,-1165.55412864,0.00016656,2]
[402076017,1768510232562,-1165.55412864,0.00016656,2]
[402076018,1768510232572,-1165.55412864,0.00016656,2]
[402076019,1768510232581,-1165.55412864,0.00016656,2]
[402076020,1768510232592,-1165.55412864,0.00016656,2]
[402076021,1768510232602,-1165.55412864,0.00016656,2]
[402076022,1768510232612,-1165.55412864,0.00016656,2]
[402076023,1768510232621,-1165.55412864,0.00016656,2]
[402076024,1768510232631,-1165.55412864,0.00016656,2]
[402076025,1768510232640,-1165.55412864,0.00016656,2]
[402076026,1768510232649,-1165.55412864,0.00016656,2]
[402076027,1768510232658,-1165.55412864,0.00016656,2]
[402076028,1768510232668,-1165.55412864,0.00016656,2]
[402076029,1768510232677,-1165.55412864,0.00016656,2]
[402076030,1768510232687,-1165.55412864,0.00016656,2]
[402076031,1768510232696,-1165.55412864,0.00016656,2]
[402076032,1768510232706,-1165.55412864,0.00016656,2]
[402076033,1768510232716,-1165.55412864,0.00016656,2]
[402076034,1768510232727,-1165.55412864,0.00016656,2]
[402076035,1768510232735,-1165.55412864,0.00016656,2]
[402076036,1768510232745,-1165.55412864,0.00016656,2]
[402076037,1768510232754,-1165.55412864,0.00016656,2]
[402076038,1768510232764,-177.7958074,0.00016656,2]
[402076040,1768510232774,-500.0,0.00016656,2]
[402076041,1768510232783,-470.173137,0.00016656,2]
[402076042,1768510232793,-176.98147396,0.00016656,2]
[402076043,1768510232804,-1271.60493913,0.00016656,2]
[402076044,1768510232813,-1271.60493913,0.00016656,2]
[402076045,1768510232822,-1271.60493913,0.00016656,2]
[402076046,1768510232832,-1271.60493913,0.00016656,2]
[402076047,1768510232842,-1271.60493913,0.00016656,2]
[402076048,1768510232851,-1271.60493913,0.00016656,2]
[402076049,1768510232860,-1271.60493913,0.00016656,2]
[402076050,1768510232870,-1271.60493913,0.00016656,2]
[402076051,1768510232880,-1271.60493913,0.00016656,2]
[402076052,1768510232889,-1271.60493913,0.00016656,2]
[402076053,1768510232899,-1271.60493913,0.00016656,2]
[402076054,1768510232909,-1271.60493913,0.00016656,2]
[402076055,1768510232918,-1271.60493913,0.00016656,2]
[402076056,1768510232927,-1271.60493913,0.00016656,2]
[402076057,1768510232937,-1271.60493913,0.00016656,2]
[402076058,1768510232947,-1271.60493913,0.00016656,2]
[402076059,1768510232956,-1271.60493913,0.00016656,2]
[402076060,1768510232964,-1271.60493913,0.00016656,2]
[402076061,1768510232974,-1271.60493913,0.00016656,2]
[402076062,1768510232983,-1271.60493913,0.00016656,2]
[402076063,1768510232993,-706.44718839,0.00016656,2]
[402076064,1768510233004,-500.0,0.00016656,2]
[402076065,1768510233014,-206.44718838,0.00016656,2]
[402076066,1768510233023,-500.0,0.00016656,2]
[402076067,1768510233032,-500.0,0.00016656,2]
[402076068,1768510233042,-500.0,0.00016656,2]
[402076069,1768510233051,-500.0,0.00016656,2]
[402076070,1768510233061,-290.0,0.00016656,2]
[402076071,1768510233070,-1692.61,0.00016656,2]
[402076072,1768510233080,-105645.36511278,0.00016657,2]
[402076073,1768510233091,-29371.76973215,0.00016657,2]
[402076074,1768510233102,-22750.69041945,0.00016657,2]
[402076075,1768510233113,-95509.92467838,0.00016657,2]
[402076076,1768510233124,-666.96670514,0.00016657,2]
[402076077,1768510233135,-28280.51253657,0.00016657,2]
[402076078,1768510234035,-208.75968596,0.00016657,2]
[402076079,1768510237063,-154.70347521,0.00016656,2]
[402076080,1768510237492,-345.29652479,0.00016656,2]
[402076081,1768510237592,-4083.44009442,0.00016657,2]
[402076082,1768510237739,-10000.01,0.00016657,2]
[402076083,1768510237878,-10000.01,0.00016657,2]
[402076090,1768510238232,-907.14,0.00016657,2]
[402076091,1768510238244,-476.9799995,0.00016657,2]
[402076092,1768510238350,-408.348,0.00016657,2]
[402076093,1768510238363,-340.00534089,0.00016657,2]
[402076094,1768510238387,-696.04737787,0.00016657,2]
[402076095,1768510238399,-3811.52496871,0.00016657,2]
[402076096,1768510238423,-633037.43225511,0.00016657,2]
[402076097,1768510238434,-500.0,0.0001666,2]
[402076098,1768510238445,-999.99,0.00016661,2]
[402076099,1768510238455,-299.99,0.00016661,4]
[402076100,1768510238466,-2769.59,0.00016661,2]
[402076101,1768510238476,-5159.48,0.00016661,2]
[402076102,1768510238486,-1179.61,0.00016661,2]
[402076103,1768510238497,-9999.99,0.00016661,2]
[402076104,1768510238508,-5877.25,0.00016661,2]
[402076105,1768510238518,-1000.0,0.00016661,2]
[402076106,1768510238528,-1000.0,0.00016661,2]
[402076107,1768510238538,-500.0,0.00016661,2]
[402076108,1768510238549,-500.0,0.00016661,2]
[402076109,1768510238560,-500.0,0.00016661,2]
[402076110,1768510238571,-500.0,0.00016661,2]
[402076111,1768510238581,-565.99630462,0.00016661,2]
[402076112,1768510238593,-500.0,0.00016661,2]
[402076113,1768510238604,-500.0,0.00016661,2]
[402076114,1768510238615,-500.0,0.00016661,2]
[402076115,1768510238626,-500.0,0.00016661,2]
[402076116,1768510238638,-500.0,0.00016661,2]
[402076117,1768510238649,-500.0,0.00016661,2]
[402076118,1768510238660,-500.0,0.00016661,2]
[402076119,1768510238671,-500.0,0.00016661,2]
[402076120,1768510238683,-214.30030878,0.00016661,2]
[402076121,1768510238696,-150.99,0.00016661,2]
[402076122,1768510238707,-9999.99,0.00016661,2]
[402076123,1768510238719,-150.99,0.00016661,2]
[402076124,1768510238733,-151.0,0.00016663,2]
[402076125,1768510238744,-151.0,0.00016665,2]
[402076126,1768510238755,-25874.44908095,0.00016709,2]
[402076127,1768510238767,-11321.50816592,0.00016709,2]
[402076128,1768510238779,-9999.99,0.0001671,2]
[402076129,1768510238790,-7637.27,0.0001671,2]
[402076130,1768510238803,-348.09,0.0001671,2]
[402076131,1768510238814,-310.05,0.0001671,2]
[402076132,1768510238825,-151.0,0.00016719,2]
[402076133,1768510238835,-500.0,0.00016761,2]
[402076134,1768510238845,-500.0,0.00016761,2]
[402076135,1768510238856,-223.20330314,0.00016761,2]
[402076136,1768510238866,-166.66,0.00016809,2]
[402076137,1768510238879,-9999.99,0.00016809,2]
[402076138,1768510238890,-459.13744812,0.00016849,2]
[402076139,1768510238901,-25874.44908095,0.00016858,2]
[402076140,1768510238913,-11321.50816592,0.00016858,2]
[402076141,1768510238925,-47894.6781104,0.00016859,2]
[402076142,1768510238939,-17224.7718896,0.00016859,2]
[402076143,1768510238951,-3128.71,0.00016859,2]
[402076144,1768510238962,-513.53,0.00016859,2]
[402076145,1768510238973,-151.0,0.00016889,2]
[402076146,1768510238984,-151.0,0.00016889,2]
[402076147,1768510238994,-199.47,0.00016895,2]
[402076148,1768510239005,-151.0,0.00016897,2]
[402076149,1768510239016,-151.0,0.00016901,2]
[402076150,1768510239026,-151.0,0.00016901,2]
[402076151,1768510239037,-151.0,0.00016905,2]
[402076152,1768510239048,-151.0,0.00016907,2]
[402076153,1768510239058,-151.0,0.00016907,2]
[402076154,1768510239069,-7836.0,0.00016909,2]
[402076155,1768510239079,-500.0,0.0001693,2]
[402076156,1768510239090,-1692.61,0.0001693,2]
[402076157,1768510239100,-170.76,0.00016951,2]
[402076158,1768510239112,-500.0,0.00016972,2]
[402076159,1768510239123,-315.46484689,0.00016973,2]
[402076160,1768510239135,-500.0,0.00016973,2]
[402076161,1768510239146,-511.23980469,0.00016973,2]
[402076162,1768510239157,-224.846516,0.00016973,2]
[402076163,1768510239168,-501.47804826,0.00016973,2]
[402076164,1768510239178,-500.0,0.00016973,2]
[402076165,1768510239189,-500.0,0.00016973,2]
[402076166,1768510239199,-500.0,0.00016973,2]
[402076167,1768510239208,-500.0,0.00016973,2]
[402076168,1768510239218,-500.0,0.00016973,2]
[402076169,1768510239228,-500.0,0.00016973,2]
[402076170,1768510239239,-500.0,0.00016973,2]
[402076171,1768510239250,-500.0,0.00016973,2]
[402076172,1768510239260,-500.0,0.00016973,2]
[402076173,1768510239270,-500.0,0.00016973,2]
[402076174,1768510239280,-500.0,0.00016973,2]
[402076175,1768510239291,-500.0,0.00016973,2]
[402076176,1768510239301,-403.60095744,0.00016973,2]
[402076177,1768510239312,-501.13499873,0.00016973,2]
[402076178,1768510239322,-500.0,0.00016973,2]
[402076179,1768510239333,-543.38282097,0.00016973,2]
[402076180,1768510239343,-500.0,0.00016973,2]
[402076181,1768510239354,-500.0,0.00016973,2]
[402076182,1768510239364,-165.87138699,0.00016973,2]
[402076183,1768510239375,-500.0,0.00016973,2]
[402076184,1768510239387,-500.0,0.00016973,2]
[402076185,1768510239398,-500.0,0.00016973,2]
[402076186,1768510239409,-500.0,0.00016973,2]
[402076187,1768510239420,-500.0,0.00016973,2]
[402076188,1768510239431,-500.0,0.00016973,2]
[402076189,1768510239442,-500.0,0.00016999,2]
[402076190,1768510239452,-250.0,0.00017,2]
[402076191,1768510239463,-25874.44908095,0.00017007,2]
[402076192,1768510239473,-11321.50816592,0.00017007,2]
[402076193,1768510239483,-1000.0,0.00017113,2]
[402076194,1768510239494,-166.66,0.00017136,2]
[402076195,1768510239504,-25874.44908095,0.00017156,2]
[402076196,1768510239514,-11321.50816592,0.00017156,2]
[402076197,1768510239525,-250.0,0.00017163,2]
[402076198,1768510239535,-802.16738931,0.00017165,2]
[402076199,1768510239545,-301.69227512,0.00017195,2]
[402076200,1768510239556,-506.63776315,0.00017195,2]
[402076201,1768510239566,-1692.61,0.00017204,2]
[402076202,1768510239577,-446.97,0.00017209,2]
[402076203,1768510239588,-392.69024378,0.0001721,2]
[402076204,1768510239599,-235.23163761,0.0001721,2]
[402076205,1768510239609,-502.63945062,0.0001721,2]
[402076206,1768510239620,-500.0,0.0001721,2]
[402076207,1768510239631,-232.5070812,0.0001721,2]
[402076208,1768510239642,-500.0,0.0001721,2]
[402076209,1768510239652,-500.0,0.0001721,2]
[402076210,1768510239663,-83914.98,0.00017211,2]
[402076211,1768510239674,-25874.44908095,0.00017304,2]
[402076212,1768510239685,-11321.50816592,0.00017304,2]
[402076213,1768510239695,-500.0,0.00017308,2]